fUST/lending_fUST_20250208
["ID","MTS","AMOUNT","RATE_DAILY","PERIOD"]
[352159489,1738966239968,-500.0,0.00010958,2]
[352159490,1738966239978,-500.0,0.00010958,2]
[352159491,1738966239987,-500.0,0.00010958,2]
[352159492,1738966239996,-500.0,0.00010958,2]
[352159493,1738966240006,-500.0,0.00010958,2]
[352159494,1738966240016,-500.0,0.00010958,2]
[352159495,1738966240025,-820.07,0.00010958,2]
[352159496,1738966240034,-701.75,0.00010958,2]
[352159497,1738966240043,-500.0,0.00010958,2]
[352159498,1738966240053,-500.0,0.00010958,2]
[352159499,1738966240062,-500.0,0.00010958,2]
[352159501,1738966240071,-500.0,0.00010958,2]
[352159503,1738966240080,-500.0,0.00010958,2]
[352159504,1738966240090,-500.0,0.00010958,2]
[352159505,1738966240099,-500.0,0.00010958,2]
[352159506,1738966240110,-552.07,0.00010958,2]
[352159507,1738966240119,-500.0,0.00010958,2]
[352159508,1738966240128,-500.0,0.00010958,2]
[352159509,1738966240137,-2121.31,0.00010958,2]
[352159510,1738966240147,-500.0,0.00010958,2]
[352159511,1738966240156,-4280.58,0.00010958,2]
[352159512,1738966240165,-500.0,0.00010958,2]
[352159513,1738966240174,-500.0,0.00010958,2]
[352159514,1738966240183,-500.0,0.00010958,2]
[352159515,1738966240194,-1256.56,0.00010958,2]
[352159516,1738966240203,-500.0,0.00010958,2]
[352159517,1738966240212,-500.0,0.00010958,2]
[352159518,1738966240221,-500.0,0.00010958,2]
[352159519,1738966240230,-500.0,0.00010958,2]
[352159520,1738966240239,-500.0,0.00010958,2]
[352159521,1738966240249,-555.40113007,0.00010958,2]
[352159522,1738966240258,-533.34,0.00010958,2]
[352159523,1738966240267,-500.0,0.00010958,2]
[352159524,1738966240277,-2713.67,0.00010958,2]
[352159525,1738966240286,-500.0,0.00010958,2]
[352159526,1738966240295,-500.0,0.00010958,2]
[352159527,1738966240305,-1549.39,0.00010958,2]
[352159528,1738966240314,-500.0,0.00010958,2]
[352159529,1738966240323,-500.0,0.00010958,2]
[352159530,1738966240333,-500.0,0.00010958,2]
[352159531,1738966240343,-500.0,0.00010958,2]
[352159532,1738966240352,-500.0,0.00010958,2]
[352159533,1738966240362,-288.21855819,0.00010958,2]
[352159534,1738966240372,-500.0,0.00010958,2]
[352159535,1738966240381,-500.0,0.00010958,2]
[352159536,1738966240391,-164.81784059,0.00010958,2]
[352159538,1738966240400,-500.0,0.00010958,2]
[352159540,1738966240410,-500.0,0.00010958,2]
[352159542,1738966240420,-540.1,0.00010958,2]
[352159543,1738966240430,-500.0,0.00010958,2]
[352159545,1738966240439,-500.0,0.00010958,2]
[352159546,1738966240448,-500.0,0.00010958,2]
[352159547,1738966240457,-500.0,0.00010958,2]
[352159548,1738966240466,-500.0,0.00010958,2]
[352159549,1738966240475,-1621.45,0.00010958,2]
[352159550,1738966240485,-2737.69,0.00010958,2]
[352159551,1738966240494,-500.0,0.00010958,2]
[352159552,1738966240503,-500.0,0.00010958,2]
[352159553,1738966240512,-1070.86,0.00010958,2]
[352159554,1738966240522,-500.0,0.00010958,2]
[352159555,1738966240531,-535.79,0.00010958,2]
[352159556,1738966240540,-500.0,0.00010958,2]
[352159557,1738966240549,-3700.02,0.00010958,2]
[352159558,1738966240559,-5218.42,0.00010958,2]
[352159559,1738966240569,-500.0,0.00010958,2]
[352159560,1738966240578,-217.11935487,0.00010958,2]
[352159561,1738966240587,-500.0,0.00010958,2]
[352159562,1738966240598,-500.0,0.00010958,2]
[352159563,1738966240607,-500.0,0.00010958,2]
[352159564,1738966240617,-9168.11,0.00010958,2]
[352159565,1738966240627,-500.0,0.00010958,2]
[352159566,1738966240636,-1832.81,0.00010958,2]
[352159567,1738966240650,-500.0,0.00010958,2]
[352159568,1738966240659,-500.0,0.00010958,2]
[352159569,1738966240668,-500.0,0.00010958,2]
[352159570,1738966240678,-500.0,0.00010958,2]
[352159571,1738966240688,-500.0,0.00010958,2]
[352159572,1738966240697,-500.0,0.00010958,2]
[352159573,1738966240706,-500.0,0.00010958,2]
[352159574,1738966240716,-500.0,0.00010958,2]
[352159575,1738966240726,-500.0,0.00010958,2]
[352159576,1738966240735,-1817.78,0.00010958,2]
[352159577,1738966240744,-500.0,0.00010958,2]
[352159578,1738966240752,-551.0079057,0.00010958,2]
[352159579,1738966240762,-500.0,0.00010958,2]
[352159580,1738966240771,-500.0,0.00010958,2]
[352159581,1738966240780,-500.0,0.00010958,2]
[352159582,1738966240790,-594.69876157,0.00010958,2]
[352159583,1738966240800,-500.0,0.00010958,2]
[352159584,1738966240809,-500.0,0.00010958,2]
[352159585,1738966240818,-500.0,0.00010958,2]
[352159586,1738966240827,-764.93,0.00010958,2]
[352159587,1738966240836,-755.41,0.00010958,2]
[352159588,1738966240846,-500.0,0.00010958,2]
[352159589,1738966240855,-500.0,0.00010958,2]
[352159590,1738966240865,-500.0,0.00010958,2]
[352159591,1738966240874,-500.0,0.00010958,2]
[352159592,1738966240883,-500.0,0.00010958,2]
[352159593,1738966241042,-514.23,0.00010958,2]
[352159594,1738966241052,-206.95330172,0.00010958,2]
[352159595,1738966241061,-500.0,0.00010958,2]
[352159596,1738966241071,-500.0,0.00010958,2]
[352159597,1738966241080,-500.0,0.00010958,2]
[352159598,1738966241089,-511.3,0.00010958,2]
[352159599,1738966241098,-500.0,0.00010958,2]
[352159600,1738966241107,-500.0,0.00010958,2]
[352159601,1738966241117,-500.0,0.00010958,2]
[352159602,1738966241127,-500.0,0.00010958,2]
[352159603,1738966241136,-500.0,0.00010958,2]
[352159604,1738966241145,-500.0,0.00010958,2]
[352159605,1738966241154,-500.0,0.00010958,2]
[352159606,1738966241163,-500.0,0.00010958,2]
[352159607,1738966241172,-255.30712407,0.00010958,2]
[352159608,1738966241181,-500.0,0.00010958,2]
[352159609,1738966241190,-5291.27,0.00010958,2]
[352159610,1738966241199,-5291.27,0.00010958,2]
[352159611,1738966241208,-5291.27,0.00010958,2]
[352159612,1738966241217,-5291.27,0.00010958,2]
[352159613,1738966241226,-958.98,0.00010958,2]
[352159614,1738966241236,-5291.27,0.00010958,2]
[352159615,1738966241245,-5291.27,0.00010958,2]
[352159616,1738966241254,-5291.27,0.00010958,2]
[352159617,1738966241263,-5291.27,0.00010958,2]
[352159618,1738966241272,-5291.27,0.00010958,2]
[352159619,1738966241281,-5291.27,0.00010958,2]
[352159620,1738966241290,-5291.27,0.00010958,2]
[352159621,1738966241299,-5291.27,0.00010958,2]
[352159622,1738966241308,-35548.87,0.00010958,2]
[352159623,1738966241317,-150.69,0.00010958,2]
[352159624,1738966241326,-500.0,0.00010958,2]
[352159625,1738966241335,-1348.92,0.00010958,2]
[352159626,1738966241344,-500.0,0.00010958,2]
[352159627,1738966241353,-500.0,0.00010958,2]
[352159628,1738966241363,-364.44295511,0.00010958,2]
[352159629,1738966241372,-500.0,0.00010958,2]
[352159630,1738966241381,-500.0,0.00010958,2]
[352159631,1738966241391,-500.0,0.00010958,2]
[352159632,1738966241400,-500.0,0.00010958,2]
[352159633,1738966241409,-500.0,0.00010958,2]
[352159634,1738966241418,-500.0,0.00010958,2]
[352159635,1738966241428,-1554.22,0.00010958,2]
[352159636,1738966241437,-500.0,0.00010958,2]
[352159637,1738966241446,-500.0,0.00010958,2]
[352159638,1738966241456,-500.0,0.00010958,2]
[352159639,1738966241465,-500.0,0.00010958,2]
[352159640,1738966241474,-14257.4,0.00010958,2]
[352159641,1738966241483,-500.0,0.00010958,2]
[352159642,1738966241492,-500.0,0.00010958,2]
[352159643,1738966241502,-3296.13,0.00010958,2]
[352159644,1738966241511,-740.86,0.00010958,2]
[352159645,1738966241519,-500.0,0.00010958,2]
[352159646,1738966241529,-500.0,0.00010958,2]
[352159647,1738966241538,-704.61,0.00010958,2]
[352159648,1738966241548,-500.0,0.00010958,2]
[352159649,1738966241557,-500.0,0.00010958,2]
[352159650,1738966241566,-413.77714815,0.00010958,2]
[352159651,1738966241575,-552.85,0.00010958,2]
[352159652,1738966241584,-519.95,0.00010958,2]
[352159653,1738966241594,-500.0,0.00010958,2]
[352159654,1738966241603,-500.0,0.00010958,2]
[352159655,1738966241612,-500.0,0.00010958,2]
[352159656,1738966241621,-500.0,0.00010958,2]
[352159657,1738966241630,-500.0,0.00010958,2]
[352159658,1738966241641,-500.0,0.00010958,2]
[352159659,1738966241652,-1561.99,0.00010958,2]
[352159660,1738966241662,-500.0,0.00010958,2]
[352159661,1738966241671,-1320.35,0.00010958,2]
[352159662,1738966241681,-3033.85,0.00010958,2]
[352159663,1738966241690,-201.9818426,0.00010958,2]
[352159664,1738966241699,-500.0,0.00010958,2]
[352159665,1738966241708,-3214.01,0.00010958,2]
[352159666,1738966241717,-500.0,0.00010958,2]
[352159667,1738966241726,-500.0,0.00010958,2]
[352159668,1738966241736,-500.0,0.00010958,2]
[352159669,1738966241746,-1556.45,0.00010958,2]
[352159670,1738966241755,-500.0,0.00010958,2]
[352159671,1738966241765,-500.0,0.00010958,2]
[352159672,1738966241774,-610.92,0.00010958,2]
[352159673,1738966241784,-500.0,0.00010958,2]
[352159674,1738966241793,-567.64,0.00010958,2]
[352159675,1738966241803,-500.0,0.00010958,2]
[352159676,1738966241812,-500.0,0.00010958,2]
[352159677,1738966241821,-500.0,0.00010958,2]
[352159678,1738966241831,-925.15,0.00010958,2]
[352159679,1738966241840,-500.0,0.00010958,2]
[352159680,1738966241849,-500.0,0.00010958,2]
[352159681,1738966241859,-500.0,0.00010958,2]
[352159682,1738966241872,-1094.43,0.00010958,2]
[352159683,1738966241881,-500.0,0.00010958,2]
[352159684,1738966241891,-500.0,0.00010958,2]
[352159685,1738966241900,-500.0,0.00010958,2]
[352159686,1738966241909,-1139.41,0.00010958,2]
[352159687,1738966241919,-807.26,0.00010958,2]
[352159688,1738966241927,-500.0,0.00010958,2]
[352159689,1738966241937,-500.0,0.00010958,2]
[352159690,1738966241947,-500.0,0.00010958,2]
[352159691,1738966241955,-500.0,0.00010958,2]
[352159692,1738966241964,-595.65,0.00010958,2]
[352159693,1738966241974,-500.0,0.00010958,2]
[352159694,1738966241983,-534.82,0.00010958,2]
[352159695,1738966241992,-500.0,0.00010958,2]
[352159696,1738966242001,-500.0,0.00010958,2]
[352159697,1738966242011,-500.0,0.00010958,2]
[352159698,1738966242020,-500.0,0.00010958,2]
[352159699,1738966242029,-500.0,0.00010958,2]
[352159700,1738966242038,-9378.36,0.00010959,2]
[352159701,1738966242047,-7815.3,0.00010959,2]
[352159702,1738966242057,-6512.75,0.00010959,2]
[352159703,1738966242066,-5427.29,0.00010959,2]
[352159704,1738966242075,-5291.27,0.00010971,2]
[352159705,1738966242084,-500.0,0.00010973,2]
[352159706,1738966242094,-500.0,0.00010973,2]
[352159707,1738966242103,-500.0,0.00010973,2]
[352159708,1738966242115,-5291.27,0.00011094,2]
[352159709,1738966242125,-5291.27,0.00011094,2]
[352159710,1738966242135,-5291.27,0.00011094,2]
[352159711,1738966242144,-5291.27,0.00011094,2]
[352159712,1738966242154,-5291.27,0.00011094,2]
[352159713,1738966242163,-5291.27,0.00011094,2]
[352159714,1738966242172,-5291.27,0.00011094,2]
[352159715,1738966242182,-5291.27,0.00011094,2]
[352159716,1738966242191,-5291.27,0.00011094,2]
[352159717,1738966242201,-5291.27,0.00011094,2]
[352159718,1738966242210,-5291.34,0.00011094,2]
[352159719,1738966242219,-500.0,0.00011095,2]
[352159720,1738966242228,-500.0,0.00011095,2]
[352159721,1738966242238,-500.0,0.00011095,2]
[352159722,1738966242246,-510.1295938,0.00011095,2]
[352159723,1738966242256,-500.0,0.00011095,2]
[352159724,1738966242265,-500.0,0.00011095,2]
[352159725,1738966242274,-204.64206758,0.00011095,2]
[352159726,1738966242283,-500.0,0.00011095,2]
[352159727,1738966242292,-500.0,0.00011095,2]
[352159728,1738966242302,-500.0,0.00011095,2]
[352159729,1738966242311,-500.0,0.00011095,2]
[352159730,1738966242319,-500.0,0.00011095,2]
[352159731,1738966242329,-500.0,0.00011095,2]
[352159732,1738966242338,-500.0,0.00011095,2]
[352159733,1738966242347,-534.23,0.00011095,2]
[352159734,1738966242356,-516.72,0.00011095,2]
[352159735,1738966242367,-500.0,0.00011095,2]
[352159736,1738966242376,-500.0,0.00011095,2]
[352159737,1738966242385,-500.0,0.00011095,2]
[352159738,1738966242395,-500.0,0.00011095,2]
[352159739,1738966242404,-500.0,0.00011095,2]
[352159740,1738966242413,-528.16,0.00011095,2]
[352159741,1738966242422,-500.0,0.00011095,2]
[352159742,1738966242432,-500.0,0.00011095,2]
[352159743,1738966242441,-500.0,0.00011095,2]
[352159744,1738966242450,-500.0,0.00011095,2]
[352159745,1738966242459,-484.92,0.00011095,2]
[352159746,1738966242468,-628.58,0.00011095,2]
[352159747,1738966242478,-500.0,0.00011095,2]
[352159748,1738966242487,-712.01,0.00011095,2]
[352159749,1738966242495,-500.0,0.00011095,2]
[352159750,1738966242505,-500.0,0.00011095,2]
[352159751,1738966242514,-285.44,0.00011095,2]
[352159752,1738966242523,-500.0,0.00011095,2]
[352159753,1738966242532,-500.0,0.00011095,2]
[352159754,1738966242542,-742.59,0.00011095,2]
[352159755,1738966242551,-500.0,0.00011095,2]
[352159756,1738966242560,-648.52,0.00011095,2]
[352159757,1738966242569,-176.77856364,0.00011095,2]
[352159758,1738966242579,-491.07440788,0.00011095,2]
[352159759,1738966242589,-654.15,0.00011095,2]
[352159760,1738966242598,-326.06,0.00011095,2]
[352159761,1738966242607,-500.0,0.00011095,2]
[352159762,1738966242618,-500.0,0.00011095,2]
[352159763,1738966242634,-151.54,0.00011095,2]
[352159764,1738966242648,-216.53,0.00011095,2]
[352159765,1738966242662,-500.0,0.00011095,2]
[352159766,1738966242675,-500.0,0.00011095,2]
[352159767,1738966242687,-500.0,0.00011095,2]
[352159768,1738966242697,-267.7,0.00011095,2]
[352159769,1738966242708,-500.0,0.00011095,2]
[352159770,1738966242722,-500.0,0.00011095,2]
[352159771,1738966242733,-820.07,0.00011095,2]
[352159772,1738966242744,-701.75,0.00011095,2]
[352159773,1738966242756,-500.0,0.00011095,2]
[352159774,1738966242768,-500.0,0.00011095,2]
[352159775,1738966242780,-630.78718659,0.00011095,2]
[352159776,1738966242791,-2121.31,0.00011095,2]
[352159777,1738966242803,-4280.58,0.00011095,2]
[352159778,1738966242816,-500.0,0.00011095,2]
[352159779,1738966242828,-500.0,0.00011095,2]
[352159780,1738966242839,-1256.56,0.00011095,2]
[352159781,1738966242851,-500.0,0.00011095,2]
[352159782,1738966242864,-500.0,0.00011095,2]
[352159783,1738966242875,-533.34,0.00011095,2]
[352159784,1738966242886,-485.15,0.00011095,2]
[352159785,1738966242898,-2713.67,0.00011095,2]
[352159786,1738966242911,-500.0,0.00011095,2]
[352159787,1738966242923,-500.0,0.00011095,2]
[352159788,1738966242935,-1549.39,0.00011095,2]
[352159789,1738966242947,-500.0,0.00011095,2]
[352159790,1738966242957,-500.0,0.00011095,2]
[352159791,1738966242967,-540.1,0.00011095,2]
[352159792,1738966242978,-500.0,0.00011095,2]
[352159793,1738966242990,-500.0,0.00011095,2]
[352159794,1738966243000,-500.0,0.00011095,2]
[352159795,1738966243012,-500.0,0.00011095,2]
[352159796,1738966243024,-1621.45,0.00011095,2]
[352159797,1738966243035,-2737.69,0.00011095,2]
[352159798,1738966243047,-1070.86,0.00011095,2]
[352159799,1738966243058,-535.79,0.00011095,2]
[352159800,1738966243071,-3700.02,0.00011095,2]
[352159801,1738966243083,-5218.42,0.00011095,2]
[352159802,1738966243095,-500.0,0.00011095,2]
[352159803,1738966243107,-500.0,0.00011095,2]
[352159804,1738966243120,-9168.11,0.00011095,2]
[352159805,1738966243131,-160.92,0.00011095,2]
[352159806,1738966243141,-1832.81,0.00011095,2]
[352159807,1738966243151,-635.5727269,0.00011095,2]
[352159808,1738966243161,-556.35,0.00011095,2]
[352159809,1738966243171,-199.5495152,0.00011095,2]
[352159810,1738966243183,-500.0,0.00011095,2]
[352159811,1738966243196,-414.85,0.00011095,2]
[352159812,1738966243209,-1817.78,0.00011095,2]
[352159813,1738966243221,-500.0,0.00011095,2]
[352159814,1738966243232,-500.0,0.00011095,2]
[352159815,1738966243242,-500.0,0.00011095,2]
[352159816,1738966243253,-500.0,0.00011095,2]
[352159817,1738966243264,-764.93,0.00011095,2]
[352159819,1738966243275,-500.0,0.00011095,2]
[352159820,1738966243288,-755.41,0.00011095,2]
[352159821,1738966243299,-500.0,0.00011095,2]
[352159822,1738966243310,-500.0,0.00011095,2]
[352159823,1738966243321,-500.0,0.00011095,2]
[352159824,1738966243331,-500.0,0.00011095,2]
[352159825,1738966243343,-500.0,0.00011095,2]
[352159826,1738966243354,-511.3,0.00011095,2]
[352159827,1738966243366,-958.98,0.00011095,2]
[352159828,1738966243376,-35548.87,0.00011095,2]
[352159829,1738966243387,-1348.92,0.00011095,2]
[352159830,1738966243399,-500.0,0.00011095,2]
[352159831,1738966243409,-500.0,0.00011095,2]
[352159832,1738966243421,-500.0,0.00011095,2]
[352159833,1738966243432,-500.0,0.00011095,2]
[352159835,1738966243443,-1554.22,0.00011095,2]
[352159837,1738966243454,-300.44,0.00011095,2]
[352159839,1738966243464,-500.0,0.00011095,2]
[352159840,1738966243475,-372.72,0.00011095,2]
[352159841,1738966243485,-14257.4,0.00011095,2]
[352159842,1738966243497,-500.0,0.00011095,2]
[352159843,1738966243508,-3296.13,0.00011095,2]
[352159844,1738966243520,-740.86,0.00011095,2]
[352159845,1738966243532,-704.61,0.00011095,2]
[352159846,1738966243544,-552.85,0.00011095,2]
[352159847,1738966243556,-519.95,0.00011095,2]
[352159848,1738966243567,-500.0,0.00011095,2]
[352159849,1738966243580,-500.0,0.00011095,2]
[352159850,1738966243591,-500.0,0.00011095,2]
[352159851,1738966243603,-500.0,0.00011095,2]
[352159852,1738966243616,-1561.99,0.00011095,2]
[352159853,1738966243628,-500.0,0.00011095,2]
[352159854,1738966243639,-1320.35,0.00011095,2]
[352159855,1738966243652,-3033.85,0.00011095,2]
[352159856,1738966243663,-500.0,0.00011095,2]
[352159857,1738966243675,-3214.01,0.00011095,2]
[352159859,1738966243687,-500.0,0.00011095,2]
[352159861,1738966243698,-1556.45,0.00011095,2]
[352159864,1738966243710,-500.0,0.00011095,2]
[352159865,1738966243723,-500.0,0.00011095,2]
[352159866,1738966243734,-610.92,0.00011095,2]
[352159867,1738966243745,-567.64,0.00011095,2]
[352159868,1738966243757,-500.0,0.00011095,2]
[352159871,1738966243768,-500.0,0.00011095,2]
[352159872,1738966243778,-925.15,0.00011095,2]
[352159873,1738966243789,-1094.43,0.00011095,2]
[352159874,1738966243800,-500.0,0.00011095,2]
[352159875,1738966243811,-525.19795782,0.00011095,2]
[352159876,1738966243822,-1139.41,0.00011095,2]
[352159877,1738966243832,-807.26,0.00011095,2]
[352159878,1738966243843,-500.0,0.00011095,2]
[352159879,1738966243854,-500.0,0.00011095,2]
[352159880,1738966243868,-500.0,0.00011095,2]
[352159881,1738966243879,-500.0,0.00011095,2]
[352159882,1738966243891,-595.65,0.00011095,2]
[352159883,1738966243902,-500.0,0.00011095,2]
[352159884,1738966243913,-534.82,0.00011095,2]
[352159885,1738966243924,-625.35916695,0.00011095,2]
[352159887,1738966243935,-500.0,0.00011232,2]
[352159888,1738966243946,-500.0,0.00011232,2]
[352159889,1738966243957,-500.0,0.00011232,2]
[352159891,1738966243968,-160.08,0.00011232,2]
[352159893,1738966243979,-500.0,0.00011232,2]
[352159895,1738966243990,-500.0,0.00011232,2]
[352159896,1738966244001,-500.0,0.00011232,2]
[352159898,1738966244013,-516.72,0.00011232,2]
[352159899,1738966244024,-500.0,0.00011232,2]
[352159900,1738966244036,-528.16,0.00011232,2]
[352159901,1738966244046,-500.0,0.00011232,2]
[352159902,1738966244057,-500.0,0.00011232,2]
[352159903,1738966244068,-500.0,0.00011232,2]
[352159904,1738966244079,-500.0,0.00011232,2]
[352159905,1738966244089,-712.01,0.00011232,2]
[352159906,1738966244100,-500.0,0.00011232,2]
[352159907,1738966244113,-500.0,0.00011232,2]
[352159908,1738966244125,-500.0,0.00011232,2]
[352159909,1738966244136,-742.59,0.00011232,2]
[352159910,1738966244147,-500.0,0.00011232,2]
[352159911,1738966244157,-648.52,0.00011232,2]
[352159912,1738966244169,-654.15,0.00011232,2]
[352159913,1738966244179,-500.0,0.00011232,2]
[352159914,1738966244190,-500.0,0.00011232,2]
[352159915,1738966244201,-500.0,0.00011232,2]
[352159916,1738966244211,-520.33,0.00011232,2]
[352159917,1738966244222,-701.75,0.00011232,2]
[352159918,1738966244233,-820.07,0.00011232,2]
[352159919,1738966244244,-500.0,0.00011232,2]
[352159920,1738966244255,-500.0,0.00011232,2]
[352159921,1738966244265,-4280.58,0.00011232,2]
[352159922,1738966244276,-500.0,0.00011232,2]
[352159923,1738966244287,-2121.31,0.00011232,2]
[352159924,1738966244298,-500.0,0.00011232,2]
[352159925,1738966244309,-1256.56,0.00011232,2]
[352159926,1738966244320,-500.0,0.00011232,2]
[352159927,1738966244330,-533.34,0.00011232,2]
[352159928,1738966244341,-500.0,0.00011232,2]
[352159929,1738966244352,-2713.67,0.00011232,2]
[352159930,1738966244365,-500.0,0.00011232,2]
[352159931,1738966244376,-1549.39,0.00011232,2]
[352159932,1738966244386,-500.0,0.00011232,2]
[352159933,1738966244397,-540.1,0.00011232,2]
[352159934,1738966244408,-500.0,0.00011232,2]
[352159935,1738966244418,-219.18,0.00011232,2]
[352159936,1738966244429,-500.0,0.00011232,2]
[352159937,1738966244439,-500.0,0.00011232,2]
[352159938,1738966244450,-1621.45,0.00011232,2]
[352159939,1738966244461,-2737.69,0.00011232,2]
[352159940,1738966244472,-1070.86,0.00011232,2]
[352159941,1738966244495,-535.79,0.00011232,2]
[352159942,1738966244505,-3700.02,0.00011232,2]
[352159943,1738966244514,-500.0,0.00011232,2]
[352159944,1738966244524,-500.0,0.00011232,2]
[352159945,1738966244533,-9168.11,0.00011232,2]
[352159946,1738966244542,-1832.81,0.00011232,2]
[352159947,1738966244551,-500.0,0.00011232,2]
[352159948,1738966244560,-1817.78,0.00011232,2]
[352159949,1738966244783,-500.0,0.00011232,2]
[352159950,1738966244795,-500.0,0.00011232,2]
[352159951,1738966244805,-500.0,0.00011232,2]
[352159952,1738966244814,-764.93,0.00011232,2]
[352159953,1738966244824,-755.41,0.00011232,2]
[352159954,1738966244833,-413.99,0.00011232,2]
[352159955,1738966244842,-500.0,0.00011232,2]
[352159956,1738966244851,-500.0,0.00011232,2]
[352159957,1738966244861,-500.0,0.00011232,2]
[352159958,1738966244870,-511.3,0.00011232,2]
[352159959,1738966244880,-958.98,0.00011232,2]
[352159960,1738966244890,-35548.87,0.00011232,2]
[352159961,1738966244899,-1348.92,0.00011232,2]
[352159962,1738966244909,-469.87198165,0.00011232,2]
[352159963,1738966244918,-500.0,0.00011232,2]
[352159964,1738966244927,-500.0,0.00011232,2]
[352159965,1738966244937,-500.0,0.00011232,2]
[352159966,1738966244948,-1554.22,0.00011232,2]
[352159967,1738966244958,-500.0,0.00011232,2]
[352159968,1738966244967,-14257.4,0.00011232,2]
[352159969,1738966244976,-500.0,0.00011232,2]
[352159970,1738966244986,-3296.13,0.00011232,2]
[352159971,1738966244995,-740.86,0.00011232,2]
[352159972,1738966245005,-704.61,0.00011232,2]
[352159973,1738966245014,-552.85,0.00011232,2]
[352159974,1738966245023,-519.95,0.00011232,2]
[352159975,1738966245033,-500.0,0.00011232,2]
[352159976,1738966245042,-500.0,0.00011232,2]
[352159977,1738966245051,-1561.99,0.00011232,2]
[352159978,1738966245061,-500.0,0.00011232,2]
[352159979,1738966245070,-1320.35,0.00011232,2]
[352159980,1738966245080,-3033.85,0.00011232,2]
[352159981,1738966245090,-3214.01,0.00011232,2]
[352159982,1738966245100,-500.0,0.00011232,2]
[352159983,1738966245110,-1556.45,0.00011232,2]
[352159984,1738966245119,-178.4,0.00011232,2]
[352159985,1738966245129,-610.92,0.00011232,2]
[352159986,1738966245139,-567.64,0.00011232,2]
[352159987,1738966245149,-500.0,0.00011232,2]
[352159988,1738966245159,-925.15,0.00011232,2]
[352159989,1738966245169,-1094.43,0.00011232,2]
[352159990,1738966245178,-1139.41,0.00011232,2]
[352159991,1738966245187,-807.26,0.00011232,2]
[352159992,1738966245196,-500.0,0.00011232,2]
[352159993,1738966245206,-500.0,0.00011232,2]
[352159994,1738966245215,-500.0,0.00011232,2]
[352159995,1738966245225,-269.01,0.00011232,2]
[352159996,1738966245234,-595.65,0.00011232,2]
[352159997,1738966245245,-534.82,0.00011232,2]
[352159998,1738966245257,-183.73402898,0.00011269,2]
[352159999,1738966245267,-500.0,0.00011369,2]
[352160000,1738966245276,-561.256,0.00011369,2]
[352160001,1738966245286,-500.0,0.00011369,2]
[352160002,1738966245296,-500.0,0.00011369,2]
[352160003,1738966245306,-153.91,0.00011369,2]
[352160004,1738966245315,-500.0,0.00011369,2]
[352160005,1738966245325,-516.72,0.00011369,2]
[352160006,1738966245335,-500.0,0.00011369,2]
[352160007,1738966245345,-528.16,0.00011369,2]
[352160008,1738966245354,-500.0,0.00011369,2]
[352160009,1738966245366,-500.0,0.00011369,2]